Cogmind - Beta 13 @@@ ROGUE MODE // 2024.04.13 @ 21:43:15 Player: Red_Zig Result: Destroyed by H-61 Shepherd with Heavy Assault Cannon Performance ------------- Evolutions (2) 1000 Regions Visited (4) 800 Robots Destroyed (126) 630 Value Destroyed (3667) 3667 Prototype IDs (3) 60 Alien Tech Used (0) 0 Bonus (144) 144 TOTAL SCORE: 6301 Bonus ------- High Alert Combat Kills 304 Friendly Fire -160 Cogmind --------- Core Integrity 0/550 Matter 96/300 Energy 19/160 System Corruption 12% Temperature Cool (0) Movement Core (750) Ox14 Location -8/Materials Parts ------- > --- POWER (1) -------- Light Nuclear Core > --- PROPULSION (4) --- Xenon Bombardment Thruster Xenon Bombardment Thruster Xenon Bombardment Thruster Xenon Bombardment Thruster > --- UTILITY (4) ------ High-capacity Storage Unit Hacking Suite > --- WEAPON (2) ------- (None) > --- INVENTORY (20) --- Xenon Bombardment Thruster High-capacity Matter Pod (200) High-capacity Matter Pod (200) Advanced Weight Redist. System Structural Scanner Advanced Targeting Computer Propulsion Shielding Improved Propulsion Shielding Hacking Suite Hacking Suite Assault Cannon Peak State ------------ > --- POWER ------------ Light Deuterium Engine > --- PROPULSION ------- Improved Carbon-fiber Leg Improved Carbon-fiber Leg Improved Carbon-fiber Leg Improved Carbon-fiber Leg > --- UTILITY ---------- High-capacity Storage Unit Improved Targeting Computer Advanced Targeting Computer Improved Medium Armor Plating > --- WEAPON ----------- Ion Cannon Assault Cannon > --- INVENTORY -------- Light Nuclear Core Xenon Bombardment Thruster Xenon Bombardment Thruster Xenon Bombardment Thruster Xenon Bombardment Thruster Xenon Bombardment Thruster High-capacity Matter Pod High-capacity Matter Pod Structural Scanner Advanced Targeting Computer Propulsion Shielding Propulsion Shielding Improved Medium Armor Plating Improved Medium Armor Plating Improved Medium Armor Plating Hacking Suite Hacking Suite Hacking Suite Heavy Missile Launcher Heavy Missile Launcher [Rating: 41] Favorites ----------- Power Light Ion Engine Engine Light Ion Engine Power Core Light Nuclear Core Propulsion Aluminum Leg Treads Light Treads Leg Aluminum Leg Flight Unit Xenon Bombardment Thruster Utility High-capacity Storage Unit Device Field Recycling Unit Storage High-capacity Storage Unit Processor Signal Interpreter Hackware Hacking Suite Protection Improved Medium Armor Plating Weapon Light Assault Rifle Energy Gun Beam Rifle Energy Cannon Ion Cannon Ballistic Gun Light Assault Rifle Ballistic Cannon Assault Cannon Launcher Mini Grenade Launcher Build | -11 -10 -9 -9 -8 ------- Run | Yrd Mat Mat Min Mat Slots Evolved 4 | . . 2 . 2 Power . | . . . . . Propulsion 2 | . . 2 . . Utility 2 | . . . . 2 Weapon . | . . . . . Parts Attached 121 | 6 13 32 2 68 Power 18 | 1 4 6 . 7 Engine 13 | 1 3 6 . 3 Core 5 | . 1 . . 4 Reactor . | . . . . . Propulsion 48 | 2 2 14 1 29 Treads 16 | 2 2 2 1 9 Leg 27 | . . 12 . 15 Wheel . | . . . . . Hover . | . . . . . Flight 5 | . . . . 5 Utility 20 | 1 2 3 . 14 Device 5 | . . 2 . 3 Storage 3 | 1 1 . . 1 Processor 5 | . 1 1 . 3 Hackware 1 | . . . . 1 Protection 6 | . . . . 6 Artifact . | . . . . . Weapon 35 | 2 5 9 1 18 Energy Gun 7 | 2 1 1 . 3 Energy Cannon 1 | . . . . 1 Ballistic Gun 22 | . 4 8 1 9 Ballistic Cannon 1 | . . . . 1 Launcher 4 | . . . . 4 Special Weapon . | . . . . . Impact Weapon . | . . . . . Slashing Weapon . | . . . . . Piercing Weapon . | . . . . . Special Melee Weapon . | . . . . . Unidentified Prototypes 3 | . . 2 . 1 Parts Lost 48 | . 1 7 2 38 Power 8 | . 1 2 . 5 Propulsion 20 | . . 3 2 15 Utility 9 | . . . . 9 Weapon 11 | . . 2 . 9 Highest Loss Streak 12 | . 1 2 2 12 To Critical Strikes . | . . . . . Average Slot Usage (%) 96 | . 99 99 91 93 Engine 9 | . 12 10 11 4 Core 1 | . 1 . . 4 Treads 11 | . 28 1 6 8 Leg 23 | . . 41 30 24 Device 3 | . . 4 11 4 Storage 11 | . 14 11 11 9 Processor 10 | . 13 6 . 13 Protection 2 | . . . . 6 Energy Gun 1 | . 3 . . 1 Energy Cannon 1 | . . . . 4 Ballistic Gun 17 | . 24 21 22 7 Ballistic Cannon 1 | . . . . 3 Naked Turns . | . . . . . Heaviest Build 72 | 14 47 55 55 72 Greatest Support 83 | 40 40 80 40 83 Greatest Overweight (x) 3 | . 1 1 2 3 Average Overweight (x) . | . . . 1 . Largest Inventory Capacity 20 | 8 20 20 20 20 Average Capacity 19 | 6 17 20 20 20 Most Carried 20 | 3 20 20 20 20 Average Carried 17 | 1 13 19 19 18 Final Capacity 20 | 8 20 20 20 20 Final Carried 20 | 3 20 20 20 11 Class Distribution -------------------- 51% | Mutant 48% | Scavenger-Mutant Dominant Class ---------------- Mutant | -10/Materials Scavenger-Mutant | -9/Materials Scavenger-Mutant | -9/Mines Mutant | -8/Materials Resources | -11 -10 -9 -9 -8 ----------- Run | Yrd Mat Mat Min Mat Matter Collected 3472 | 241 466 1087 8 1670 Remotely . | . . . . . Salvage Created 4654 | . 660 1496 . 2498 Parts 299 | . 46 98 . 155 Haulers Intercepted 7 | . . 1 . 6 Recyclers Shooed 1 | . . . . 1 Parts Field Recycled 25 | . . 25 . . Retrieved Matter 239 | . . 239 . . Parts Self-Destructed . | . . . . . Prevented . | . . . . . Kills | -11 -10 -9 -9 -8 ------- Run | Yrd Mat Mat Min Mat Combat Hostiles Destroyed 93 | . 16 32 . 45 Guns 73 | . 16 32 . 25 Cannons 15 | . . . . 15 AOE 5 | . . . . 5 Classes Destroyed 12 | . 4 5 . 3 Worker 5 | . . 2 . 3 Builder 3 | . . . . 3 Hauler 7 | . . 1 . 6 Recycler 3 | . . 1 . 2 Operator 5 | . 2 2 . 1 Watcher 9 | . 3 3 . 3 Swarmer 21 | . 4 10 . 7 Grunt 44 | . 12 13 . 19 Duelist 2 | . . 1 . 1 Sentry 20 | . . 8 . 12 Specialist 4 | . . . . 4 Hunter 2 | . . . . 2 Thug 1 | . . . . 1 Best Kill Streak 7 | . 4 6 . 7 Combat Bots Only 5 | . 4 4 . 5 Max Kills in Single Turn 2 | . 1 1 . 2 Gunslinging . | . . . . . Exploded 2 | . . . . 2 Melee . | . . . . . Uniques/NPCs Destroyed . | . . . . . Combat | -11 -10 -9 -9 -8 -------- Run | Yrd Mat Mat Min Mat Hostile Shots Fired 678 | . 54 230 8 386 Missed 220 | . 16 75 2 127 Damage Taken 7471 | . 416 1820 179 5056 Core 1038 | . 82 343 30 583 Absorbed by Shields 267 | . . 118 . 149 Redirected to Shielding 53 | . . . . 53 Core Remaining (%) 57 | 100 67 . 6 . Volleys Fired 439 | . 58 158 6 217 Largest 2 | . 2 2 2 2 Hottest 104 | . 90 46 43 104 Shots Fired 843 | . 116 316 12 399 Gun 695 | . 116 316 12 251 Cannon 130 | . . . . 130 Launcher 18 | . . . . 18 Special . | . . . . . Kinetic 683 | . 74 316 12 281 Thermal 139 | . 39 . . 100 Explosive 18 | . . . . 18 Electromagnetic 3 | . 3 . . . Robot Hit Streak 18 | . 8 14 4 18 Robot Miss Streak 8 | . 5 8 1 7 Penetration Max 1 | . . . . 1 Secondary Targets 12 | . . 7 . 5 Max Gunslinging Chain 1 | . . 1 . 1 Shots Hit Robots 560 | . 69 203 8 280 Core Hits 226 | . 40 67 . 119 Critical Kills 3 | . . 2 . 1 Critical Parts Destroyed 4 | . . 2 . 2 Critical Strikes 12 | . 1 4 . 7 Burn 3 | . 1 . . 2 Destroy 7 | . . 4 . 3 Blast 2 | . . . . 2 Melee Attacks . | . . . . . Impact . | . . . . . Slashing . | . . . . . Piercing . | . . . . . Sneak Attacks . | . . . . . Combat Hostiles . | . . . . . Follow-up Attacks . | . . . . . Damage Inflicted 8713 | . 670 2524 104 5415 Guns 5879 | . 670 2524 104 2581 Cannons 2129 | . . . . 2129 Explosions 670 | . . . . 670 Melee . | . . . . . Ramming 35 | . . . . 35 Kinetic 6251 | . 349 2524 104 3274 Thermal 1718 | . 282 . . 1436 Explosive 670 | . . . . 670 Electromagnetic 39 | . 39 . . . Impact . | . . . . . Slashing . | . . . . . Piercing . | . . . . . Highest Corruption 12 | . . 1 1 12 Average Corruption 1 | . . 1 1 12 Corruption Purged . | . . . . . Corruption Blocked . | . . . . . Effects 9 | . . 7 2 . Message Errors 1 | . . 1 . . Matter Fused 3 | . . 3 . . Heat Flow Errors 1 | . . 1 . . Energy Discharges 2 | . . 2 . . Data Loss (minor) 1 | . . . 1 . Alerts 1 | . . . 1 . Overload Shots . | . . . . . Overflow Damage 79 | . . . . 79 Projectiles 30 | . . . . 30 Explosions 49 | . . . . 49 Melee . | . . . . . Knockbacks 13 | . . . . 13 Impact . | . . . . . Kinetic 10 | . . . . 10 Secondary 3 | . . . . 3 Self-Inflicted Damage 316 | . . . . 316 Shots 8 | . . . . 8 Rammed 1 | . . . . 1 Targets Rammed 4 | . . . . 4 Kicked 3 | . . . . 3 Crushed . | . . . . . Highest Temperature 372 | . 372 160 34 297 Average Temperature 67 | . 109 12 12 76 Received Heat Transfer 2106 | . 144 681 45 1236 Effects 3 | . . . . 3 Energy Bleed 1 | . . . . 1 Interference 2 | . . . . 2 Siege Activations . | . . . . . Robots Corrupted . | . . . . . Combat Hostiles . | . . . . . Parts Fried . | . . . . . Impact Corruptions . | . . . . . Robots Melted . | . . . . . Combat Hostiles . | . . . . . Parts Melted 5 | . 2 . . 3 Heat Transferred 3544 | . 806 . . 2738 Parts Sabotaged . | . . . . . Parts Stolen . | . . . . . Parts Stripped . | . . . . . Power Chain Reactions . | . . . . . Alert | -11 -10 -9 -9 -8 ------- Run | Yrd Mat Mat Min Mat Peak Influence 923 | . 310 513 178 923 Initial 163 | . . 9 163 . Average 256 | . 74 255 114 447 Maximum Alert Level 3 | . 1 2 . 3 Low Security (%) 53 | 100 92 47 100 15 Level 1 19 | . 7 16 . 36 Level 2 18 | . . 35 . 23 Level 3 8 | . . . . 24 Level 4 . | . . . . . Level 5 . | . . . . . High Security . | . . . . . Max Security . | . . . . . Squads Dispatched 21 | . 4 3 . 14 Investigation 5 | . 2 1 . 2 Extermination . | . . . . . Reinforcement 10 | . 2 2 . 6 Assault . | . . . . . Garrison 6 | . . . . 6 Intercept . | . . . . . Searches Triggered . | . . . . . Construction Impeded 1 | . . . . 1 Haulers Reinforced . | . . . . . Active Scanning Responses . | . . . . . Cargo Convoy Interrupts . | . . . . . Stealth | -11 -10 -9 -9 -8 --------- Run | Yrd Mat Mat Min Mat Distress Signals 8 | . 1 4 . 3 Communications Jammed . | . . . . . Distress Signals . | . . . . . Times Spotted 165 | . 28 50 2 85 Peak Tracking Total 10 | . 6 5 2 10 Tactical Retreats 15 | . 1 2 . 12 Traps | -11 -10 -9 -9 -8 ------- Run | Yrd Mat Mat Min Mat Traps Triggered 7 | . 3 2 . 2 Indirectly . | . . . . . Trap Hack Attempts . | . . . . . Triggered . | . . . . . Disarmed . | . . . . . Reprogrammed . | . . . . . Reused . | . . . . . Traps Extracted . | . . . . . Installed . | . . . . . Triggered . | . . . . . Machines | -11 -10 -9 -9 -8 ---------- Run | Yrd Mat Mat Min Mat Machines Disabled 5 | . . 1 . 4 Max in Single Turn 1 | . . 1 . 1 Machines Repaired . | . . . . . Machines Dismantled . | . . . . . Machines Sabotaged . | . . . . . Overloaded Fab Kills . | . . . . . Hacking | -11 -10 -9 -9 -8 --------- Run | Yrd Mat Mat Min Mat Machines Accessed 1 | . . . 1 . Terminals . | . . . . . Fabricators . | . . . . . Repair Stations . | . . . . . Recycling Units . | . . . . . Scanalyzers . | . . . . . Garrison Access . | . . . . . Total Hacks 1 | . . . 1 . Successful 1 | . . . 1 . Failed . | . . . . . Catastrophic . | . . . . . Database Lockouts . | . . . . . Manual . | . . . . . Terminals . | . . . . . Fabricators . | . . . . . Repair Stations . | . . . . . Recycling Units . | . . . . . Scanalyzers . | . . . . . Garrison Access . | . . . . . Terminal Hacks 1 | . . . 1 . Open Door 1 | . . . 1 . Fabricator Hacks . | . . . . . Repair Station Hacks . | . . . . . Recycling Unit Hacks . | . . . . . Scanalyzer . | . . . . . Garrison Access Hacks . | . . . . . Unauthorized Hacks . | . . . . . Terminals . | . . . . . Fabricators . | . . . . . Repair Stations . | . . . . . Recycling Units . | . . . . . Scanalyzers . | . . . . . Garrison Access . | . . . . . Data Cores Recovered . | . . . . . Used . | . . . . . Hacking Detections . | . . . . . Full Trace Events . | . . . . . Feedback Events . | . . . . . Feedback Blocked . | . . . . . Robot Schematics Acquired . | . . . . . Robots Built . | . . . . . Authchips . | . . . . . Time . | . . . . . Total Robot Build Rating . | . . . . . Part Schematics Acquired . | . . . . . Parts Built . | . . . . . Authchips . | . . . . . Time . | . . . . . Total Part Build Rating . | . . . . . Parts Repaired . | . . . . . Time . | . . . . . Parts Recycled . | . . . . . Recycled Matter . | . . . . . Retrieved Matter . | . . . . . Retrieved Components . | . . . . . Parts Scanalyzed . | . . . . . Part Schematics Acquired . | . . . . . Parts Damaged . | . . . . . Bothacking | -11 -10 -9 -9 -8 ------------ Run | Yrd Mat Mat Min Mat Used RIF Installer . | . . . . . Robots Hacked . | . . . . . Non-combat . | . . . . . Combat . | . . . . . Robot Hacks Applied . | . . . . . Relay Couplers Released . | . . . . . Fabnet Peak Effective % . | . . . . . Robots Rewired . | . . . . . Allies Hacked . | . . . . . Hacks Repelled . | . . . . . Allies | -11 -10 -9 -9 -8 -------- Run | Yrd Mat Mat Min Mat Total Allies . | . . . . . Largest Group . | . . . . . Highest-Rated Group . | . . . . . Highest-Rated Ally . | . . . . . Total Orders . | . . . . . Ally Attacks . | . . . . . Total Damage . | . . . . . Kills . | . . . . . Allies Corrupted . | . . . . . Allies Melted . | . . . . . Intel | -11 -10 -9 -9 -8 ------- Run | Yrd Mat Mat Min Mat Robot Analysis Total . | . . . . . Derelict Logs Recovered . | . . . . . Drone Launches . | . . . . . Drone Recoveries . | . . . . . Exploration | -11 -10 -9 -9 -8 ------------- Run | Yrd Mat Mat Min Mat Turns Passed 7263 | 76 1979 2222 559 2427 Spaces Moved 2930 | 43 750 880 216 1041 Core 3 | 3 . . . . Treads 1000 | 40 750 27 . 183 Legs 1925 | . . 853 216 856 Wheels . | . . . . . Hover . | . . . . . Flight 2 | . . . . 2 Fastest Speed 50 | 50 160 160 190 120 Average Speed 186 | 152 220 189 231 151 Slowest Speed 400 | 160 240 190 260 400 Overloaded Moves . | . . . . . Propulsion Burnouts . | . . . . . Robots Hopped . | . . . . . Cave-ins Triggered 1 | . . . . 1 Exploration Rate (%) 54 | 4 96 53 37 80 Regions Visited 4 Branch Regions 1 Pre-discovered Areas . | . . . . . Known Exits Taken 2 | . 1 1 . . Unknown Exits Taken 2 | 1 . . 1 . Scrap Searched . | . . . . . Spaces Dug . | . . . . . Terrain Destroyed 163 | . . . . 163 Melee . | . . . . . Projectile 21 | . . . . 21 AOE 142 | . . . . 142 Terrain Rammed . | . . . . . Walls Destroyed . | . . . . . Machines Disabled . | . . . . . Actions | -11 -10 -9 -9 -8 --------- Run | Yrd Mat Mat Min Mat Total 3967 | 51 975 1170 270 1501 Wait 351 | . 130 65 40 116 Move 2926 | 42 749 879 215 1041 Hop . | . . . . . Pick Up 66 | 3 17 18 3 25 Fast Attach 41 | 6 8 3 1 23 Attach 42 | . 1 15 . 26 Detach . | . . . . . Swap 38 | . 4 14 1 19 Drop 60 | . 8 18 4 30 Fire 439 | . 58 158 6 217 Melee . | . . . . . Ram . | . . . . . Kick 3 | . . . . 3 Crush 1 | . . . . 1 Escape Stasis . | . . . . . Rewire . | . . . . . Trap . | . . . . . Miscellaneous . | . . . . . Route ------- -11/Scrapyard -10/Materials (discovered 4 exits: *Mat x3 / *Min) -9/Materials (discovered 2 exits: *Mat / *Min) -9/Mines -8/Materials (discovered 1 exit: *Fac) History --------- Turn | Location | Event 3 | -11/Scrapyard | Discovered new exit (range 16) 77 | -11/Scrapyard | Entered Materials 300 | -10/Materials | Build established: Mutant 302 | -10/Materials | Discovered new exit (range 5) 384 | -10/Materials | Discovered new exit (range 11) 398 | -10/Materials | Identified exit to Mines 492 | -10/Materials | Discovered new exit (range 15) 1096 | -10/Materials | Discovered new exit (range 4) 1154 | -10/Materials | Identified exit to Materials 2056 | -10/Materials | Entered another Materials area 2056 | -9/Materials | Evolved 2 slots: Propulsion x2 2447 | -9/Materials | Discovered new exit (range 11) 2449 | -9/Materials | Build established: Scavenger-Mutant 2464 | -9/Materials | Identified exit to Mines 2523 | -9/Materials | Core integrity fell below 50% 3144 | -9/Materials | Discovered new exit (range 3) 4061 | -9/Materials | Core integrity fell below 20% 4278 | -9/Materials | Entered Mines 4341 | -9/Mines | Met a Derelict who couldn't figure out how to use a Trap Extractor 4356 | -9/Mines | Met a Derelict bent on vengeance 4471 | -9/Mines | Joined a pair of Derelicts in attacking an 0b10 outpost 4806 | -9/Mines | Discovered new exit (range 11) 4837 | -9/Mines | Entered Materials 4837 | -8/Materials | Evolved 2 slots: Utility x2 5047 | -8/Materials | Lost 3 parts (1p1n1u) 5103 | -8/Materials | Garrison activated, responded to threat 5166 | -8/Materials | Lost 6 parts (2n2u2w) 5363 | -8/Materials | Lost 3 parts (1p2n) 5604 | -8/Materials | Lost 5 parts (1p3n1w) 6017 | -8/Materials | Lost 4 parts (1p1n2w) 6024 | -8/Materials | Core integrity fell below 50% 6311 | -8/Materials | Build established: Mutant 6376 | -8/Materials | Discovered new exit (range 13) 6409 | -8/Materials | Identified exit to Factory 7244 | -8/Materials | Core integrity fell below 20% 7247 | -8/Materials | Crushed by falling debris 7247 | -8/Materials | System corruption reached 10% 7264 | -8/Materials | Destroyed by H-61 Shepherd with Heavy Assault Cannon Last Messages --------------- 07238_ G-47 Trooper destroyed. 07241_ The unstable cave ceiling collapses. 07247_ Crushed by falling debris. 07247_ Imp. Targeting Computer destroyed. 07247_ System corrupted by crushing effect (+5). 07247_ Imp. Carbon-fiber Leg destroyed. 07247_ System corrupted by crushing effect (+1). 07247_ Hvy. Missile Launcher destroyed. 07247_ System corrupted by crushing effect (+2). 07247_ Adv. Targeting Computer destroyed. 07247_ System corrupted by crushing effect (+4). 07248_ Imp. Medium Armor Plating destroyed. 07248_ Knocked back. 07250_ The unstable cave ceiling collapses. 07251_ Critical hit (Burn: +37). 07253_ Slug penetrates Wall. 07253_ Knocked back. 07258_ Slug penetrates Wall. 07258_ Knocked back. 07264_ Hvy. Missile Launcher destroyed. Map ----- +----------------------------------------------------+ | #[[ ! ! % %% % #?????????? | | =!! %[[[ #?????????? | | #%*%! [%[[ % #?????????? | | #= = ############### #?????????? | | ####### #??????## #?????????? | | ####### #??????### ##########?? | | T #??????? # # #?? | | ####### #??????? # # T """ #?? | | ??????# #????????+ + """ #?? | | ??????###+###????????# # """ #?? | | ??????#/ #????????# # #?? | | ??????# #????? ??# # """ #?? | | ??????# #????? ??# # """ #?? | | #?????# """ #????? ??# # """ #?? | | ####### """ #???? ??# # #?? | | /## """ #???#+#??# ############ | | """ ## #???# #??# #???###% # | | "R ########???# #??# #######% # | | """ #?? ## #??# #??# [[+% # | | "" ## ### #??# ######### #= # | | ## # #!#??# #???????# #! # | | ## # # ### #???????# # # | | """ ## # # ######### # ! # | | """ =## # # # # # % # # # | | """ #?# ; + # # # | | """ #??# H %% %; @ !! # "##### | | """ #?## #%g#* !! # #????? | | ###! # # # # #????? | | #######! ######### #????? | | ??????#! # ####????# #????? | | ??????#! #????# #????? | | ??????#! #????# "#???? | | ??????##! *[[ ]#????# ##???? | | ???????####=[ #????# #????? | | ##????????#%# ## #????#%#????? | | #????????#=# ## #######%#????? | | #????????#*## ## #????? | | #????????# ## ## ##""### #????? | | #????????# ## " " ## #??##?# #????? | | #????????# ## "R" !## #?????# #????? | | #????????# ## """ ## #?????# #????? | | ##????????# ########## #?????# #????? | | ??????????# #????????# #######+##???? | | ??????????# #????????# # ! #???? | | ??????????# #????????? # ] #???? | | ###?????#?# #????????? #! =#???? | | #??#### # #????????????# #???? | | #??# # #######??????+ """ #???? | | #??# + #??????# """"" #???? | | " #??#[[ # #??????# """"" #???? | +----------------------------------------------------+ Best States ------------- Heat Dissipation 31 Energy Generation 15 Energy Capacity 280 Matter Stores 300 Matter Capacity 300 Sight Range 16 Terrain Scan Density 10 Additional Mass Support 9 Armor Coverage 225 Propulsion Shielding 33 Evasion (%) 55 Targeting Accuracy 14 Recoil Reduction 4 Salvage Targeting 1 Offensive Hacking 10 Item Schematics ----------------- None Robot Schematics ------------------ None Fabricated ------------ Nothing Alien Tech Used ----------------- None Achievements -------------- Close Call Challenges ------------ None Game ------ Seed FactoryGatlingSystem Manual? 0 Play Time 01:08:20 Cumulative 21.1 hours Start 2024.04.13 @ 13:13:50 End 2024.04.13 @ 21:43:15 Sessions 2 Manual Loads 0 Difficulty Rogue Special Mode None Game No. 20 Rogue 8 Adventurer 12 Explorer 0 Win Type - Total 0 Types 0/0/0/0/0/0/0/0/0 Lore% 14 Gallery% 22 Achievement% 21 Wizard Run 0 Options --------- Layout 2 ASCII 0 Keyboard 0 Movement Mouse Keybinds 0 Fullscreen 1 Font 24/Smallcaps Map View 50x44 Zoom Use 0% Tactical HUD 1 Map Filters NONE Filters NONE Steam 1 RUN: 5a6cad06-d49c-442c-9013-9f9f77003646